bitfinex/quotes_SOLUSD_20250514
["timestamp","ask_amount","ask_price","bid_price","bid_amount"]
[1747181265499,0.28432314,183.32,183.19,19.8]
[1747181265701,0.42648471,183.32,183.22,26.0]
[1747181266105,0.14216157,183.3,183.19,19.8]
[1747181266309,20.794,183.29,183.19,19.8]
[1747181266613,20.794,183.29,183.22,26.0]
[1747181267822,19.7,183.29,183.22,26.0]
[1747181268493,19.7,183.29,183.23,26.0]
[1747181268494,5.45613269,183.28,183.23,26.0]
[1747181268709,5.45613269,183.28,183.24,26.0]
[1747181269293,5.45613269,183.28,183.22,26.0]
[1747181270412,19.64,183.33,183.22,26.0]
[1747181270595,25.09464462,183.33,183.22,31.45773755]
[1747181272023,38.73125619,183.33,183.22,31.45773755]
[1747181272522,38.73125619,183.33,183.22,26.0]
[1747181272735,38.73125619,183.33,183.24,26.0]
[1747181273103,25.09464462,183.33,183.21,0.42648471]
[1747181273299,38.73125619,183.33,183.24,26.0]
[1747181273502,38.73125619,183.33,183.22,26.0]
[1747181274500,38.73125619,183.33,183.23,26.0]
[1747181274948,5.45464462,183.33,183.23,26.0]
[1747181275112,25.01464462,183.33,183.23,26.0]
[1747181275436,25.01464462,183.33,183.24,0.42648471]
[1747181275931,6.3998,183.34,183.28,0.42648471]
[1747181276136,19.54,183.37,183.28,0.42648471]
[1747181276440,5.45375218,183.36,183.32,26.0]
[1747181276915,24.99352779,183.37,183.32,26.0]
[1747181277311,24.99352779,183.37,183.3,26.0]
[1747181278138,5.45315737,183.38,183.31,26.0]
[1747181279460,5.45315737,183.38,183.32,26.0]
[1747181279946,19.08605081,183.38,183.32,26.0]
[1747181280326,19.08605081,183.38,183.26,26.0]
[1747181280637,19.08605081,183.38,183.28,26.0]
[1747181281741,5.45315737,183.38,183.28,162.3]
[1747181281952,5.45315737,183.38,183.29,0.42648471]
[1747181282459,5.45315737,183.38,183.32,26.0]
[1747181282648,12.07688465,183.39,183.32,26.0]
[1747181283339,6.6254,183.45,183.33,1.95138471]
[1747181283531,6.6254,183.45,183.36,26.0]
[1747181284427,5.45137374,183.44,183.37,26.0]
[1747181284633,19.0798081,183.44,183.37,26.0]
[1747181285032,19.0798081,183.44,183.35,26.0]
[1747181288358,16.34216157,183.43,183.34,26.0]
[1747181288553,16.62648471,183.43,183.31,19.8]
[1747181288850,16.62648471,183.43,183.34,26.0]
[1747181289051,1.23616157,183.4,183.34,26.0]
[1747181289259,24.81286002,183.39,183.34,26.0]
[1747181289428,5.45286002,183.39,183.34,26.0]
[1747181289622,5.45262921,183.4,183.34,26.0]
[1747181290459,6.4995,183.41,183.34,31.4543118]
[1747181290938,11.95184105,183.41,183.34,31.4543118]
[1747181293864,11.95184105,183.41,183.32,1.5793]
[1747181293865,11.95184105,183.41,183.35,26.0]
[1747181296387,11.95184105,183.41,183.33,5.45458907]
[1747181296981,11.95184105,183.41,183.34,26.0]
[1747181297536,25.58250459,183.41,183.34,26.0]
[1747181298259,25.58250459,183.41,183.31,19.8]
[1747181298465,25.58250459,183.41,183.34,26.0]
[1747181300478,25.58250459,183.41,183.3,26.0]
[1747181300479,0.42648471,183.4,183.3,26.0]
[1747181300770,0.28432314,183.38,183.27,5.93430641]
[1747181300943,1.094,183.36,183.26,19.32]
[1747181301139,1.094,183.36,183.29,26.0]
[1747181302277,19.0891737,183.35,183.29,26.0]
[1747181306074,19.22,183.37,183.29,26.0]
[1747181306075,5.45345476,183.37,183.29,5.45568233]
[1747181306247,5.45345476,183.37,183.32,26.0]
[1747181306646,5.45256295,183.4,183.33,5.45464462]
[1747181306857,5.45256295,183.4,183.32,26.0]
[1747181306858,5.45256295,183.4,183.34,26.0]
[1747181307177,19.08396971,183.4,183.32,26.0]
[1747181308054,0.42648471,183.39,183.3,26.0]
[1747181308264,1.094,183.38,183.27,26.0]
[1747181308466,0.14216157,183.37,183.27,26.0]
[1747181308645,19.14,183.36,183.27,26.0]
[1747181308846,5.45404963,183.35,183.28,26.0]
[1747181309265,19.0891737,183.35,183.28,26.0]
[1747181309980,19.0891737,183.35,183.27,26.0]
[1747181310152,19.0891737,183.35,183.28,26.0]
[1747181311481,6.4571,183.34,183.24,19.32]
[1747181311654,6.4571,183.34,183.27,26.0]
[1747181312459,0.14216157,183.33,183.27,26.0]
[1747181313685,19.09229761,183.32,183.24,19.32]
[1747181315469,5.45494217,183.32,183.24,19.32]
[1747181315972,5.45494217,183.32,183.24,24.77718204]
[1747181316961,5.45464462,183.33,183.27,26.0]
[1747181317865,19.09125619,183.33,183.23,26.0]
[1747181318775,19.09125619,183.33,183.24,26.0]
[1747181319357,19.09125619,183.33,183.23,26.0]
[1747181319689,1.094,183.31,183.23,26.0]
[1747181319857,6.0831,183.29,183.2,19.32]
[1747181320067,19.02,183.28,183.18,8.50144557]
[1747181320288,19.02,183.28,183.21,26.0]
[1747181320898,19.0975064,183.27,183.18,34.50144557]
[1747181321201,19.0975064,183.27,183.18,8.50144557]
[1747181321490,19.0975064,183.27,183.19,26.0]
[1747181321491,5.4564304,183.27,183.19,26.0]
[1747181322985,5.4564304,183.27,183.18,31.45903165]
[1747181324096,5.45618856,183.28,183.19,0.42648471]
[1747181324300,6.0831,183.29,183.19,0.42648471]
[1747181324301,11.5390128,183.29,183.19,0.42648471]
[1747181324604,11.5390128,183.29,183.22,26.0]
[1747181325167,11.5390128,183.29,183.22,31.45770718]
[1747181327917,11.5390128,183.29,183.22,26.0]
[1747181328090,11.5390128,183.29,183.24,26.0]
[1747181329406,11.5390128,183.29,183.22,31.45781672]
[1747181332113,11.5390128,183.29,183.22,50.47781672]
[1747181332912,6.0831,183.29,183.22,50.47781672]
[1747181333717,11.53902538,183.29,183.22,50.47781672]
[1747181336323,11.53902538,183.29,183.22,45.02]
[1747181337023,11.53902538,183.29,183.22,50.47782152]
[1747181338226,11.53902538,183.29,183.22,45.02]
[1747181338605,11.53902538,183.29,183.22,50.47788109]
[1747181339030,6.0831,183.29,183.22,50.47788109]
[1747181340211,6.5318,183.33,183.27,26.0]
[1747181341636,5.45494217,183.32,183.28,26.0]
[1747181342128,6.5318,183.33,183.28,26.0]
[1747181342433,11.51015737,183.38,183.31,26.0]
[1747181342633,6.057,183.38,183.31,26.0]
[1747181343603,6.057,183.38,183.35,26.0]
[1747181343901,6.0563,183.43,183.35,26.0]
[1747181344335,25.13714827,183.43,183.35,26.0]
[1747181344816,11.50797093,183.43,183.35,26.0]
[1747181346098,11.50797093,183.43,183.37,26.0]
[1747181346500,11.50797093,183.43,183.38,26.0]
[1747181347147,25.13714827,183.43,183.35,26.0]
[1747181348106,25.13714827,183.43,183.36,26.0]
[1747181348340,11.50797093,183.43,183.36,26.0]
[1747181349906,11.50797093,183.43,183.36,5.4536307]
[1747181350135,6.1457,183.48,183.37,26.42648471]
[1747181350326,6.1457,183.48,183.39,26.0]
[1747181350553,25.22134856,183.48,183.39,26.0]
[1747181350729,11.5958853,183.48,183.39,26.0]
[1747181352045,11.5958853,183.48,183.43,26.0]
[1747181352944,6.1457,183.48,183.43,26.0]
[1747181353244,5.44899738,183.52,183.44,26.42648471]
[1747181353420,5.44899738,183.52,183.44,26.0]
[1747181354056,5.44899738,183.52,183.44,31.45124242]
[1747181354425,12.11484946,183.53,183.44,31.45124242]
[1747181354955,12.11484946,183.53,183.44,26.0]
[1747181355129,12.11484946,183.53,183.46,26.0]
[1747181355842,25.73660067,183.53,183.41,0.14216157]
[1747181356054,25.73660067,183.53,183.44,26.0]
[1747181356423,0.14216157,183.52,183.41,19.0]
[1747181356628,1.094,183.51,183.41,19.0]
[1747181357249,1.094,183.51,183.44,26.0]
[1747181357466,1.094,183.51,183.42,26.0]
[1747181357467,6.95042314,183.5,183.42,26.0]
[1747181357678,6.6661,183.5,183.39,26.0]
[1747181357844,6.6661,183.5,183.36,24.43356871]
[1747181358243,19.07460896,183.49,183.4,26.0]
[1747181358448,19.0,183.48,183.4,26.0]
[1747181358860,19.07460896,183.49,183.41,26.0]
[1747181359077,19.0,183.48,183.41,26.0]
[1747181360279,5.45048236,183.47,183.41,26.0]
[1747181360463,5.45048236,183.47,183.39,26.0]
[1747181360663,19.07668827,183.47,183.4,26.0]
[1747181362542,5.45025663,183.48,183.4,26.0]
[1747181362845,6.6661,183.5,183.41,0.42648471]
[1747181363273,12.11595563,183.5,183.41,0.42648471]
[1747181364074,12.11595563,183.5,183.45,26.0]
[1747181364450,6.6661,183.5,183.46,26.0]
[1747181364650,5.44906817,183.52,183.46,26.0]
[1747181365746,19.07156163,183.52,183.46,26.0]
[1747181366154,13.62249346,183.52,183.46,26.0]
[1747181366371,5.44870048,183.53,183.46,26.0]
[1747181366679,19.07045169,183.53,183.46,26.0]
[1747181368151,19.07045169,183.53,183.47,26.0]
[1747181368351,5.44870048,183.53,183.47,26.0]
[1747181368879,5.44870048,183.53,183.46,26.0]
[1747181369948,11.73121501,183.54,183.46,31.45062573]
[1747181371279,25.35222405,183.54,183.48,26.0]
[1747181371471,25.35222405,183.54,183.43,18.98]
[1747181371849,0.14216157,183.53,183.44,26.0]
[1747181372056,0.42648471,183.53,183.44,26.0]
[1747181372484,0.42648471,183.53,183.41,26.0]
[1747181373278,19.07149084,183.52,183.41,26.0]
[1747181373658,19.07149084,183.52,183.38,24.4330822]
[1747181373959,19.07149084,183.52,183.41,26.0]
[1747181375687,46.31647776,183.52,183.41,26.0]
[1747181376460,46.31647776,183.52,183.42,26.0]
[1747181376658,38.05149084,183.52,183.42,26.0]
[1747181377168,38.05149084,183.52,183.42,24.43196617]
[1747181378983,6.1387,183.59,183.45,26.0]
[1747181379172,11.58561976,183.59,183.46,0.42648471]
[1747181380376,25.20291917,183.59,183.47,5.45048236]
[1747181380577,25.20291917,183.59,183.5,26.0]
[1747181380772,25.20291917,183.59,183.5,44.98]
[1747181380975,25.20291917,183.59,183.5,26.0]
[1747181382998,25.20291917,183.59,183.46,5.45053934]
[1747181383173,0.14216157,183.58,183.46,18.98]
[1747181383490,0.42648471,183.58,183.46,18.98]
[1747181383676,19.06629623,183.57,183.46,44.98]
[1747181385300,19.06629623,183.57,183.46,26.0]
[1747181385472,1.094,183.54,183.46,26.0]
[1747181385981,5.44870048,183.53,183.46,26.0]
[1747181386880,5.44870048,183.53,183.44,24.41131804]
[1747181388094,5.44870048,183.53,183.47,26.0]
[1747181388308,19.07045169,183.53,183.42,18.96]
[1747181388683,19.07045169,183.53,183.45,26.0]
[1747181390804,0.42648471,183.5,183.34,136.3]
[1747181391103,19.07613357,183.5,183.4,26.0]
[1747181391286,0.14216157,183.5,183.4,26.0]
[1747181391486,0.42648471,183.5,183.4,26.0]
[1747181391693,19.07613357,183.5,183.4,26.0]
[1747181392211,0.14216157,183.46,183.34,18.96]
[1747181392406,19.10216157,183.46,183.34,18.96]
[1747181392716,19.10216157,183.46,183.37,26.0]
[1747181393312,19.10216157,183.46,183.32,18.96]
[1747181393500,19.10216157,183.46,183.35,26.0]
[1747181394180,19.07876804,183.45,183.35,26.0]
[1747181395834,19.07876804,183.45,183.34,5.45434711]
[1747181396059,5.45107658,183.45,183.35,26.0]
[1747181396352,5.45107658,183.45,183.36,5.45375218]
[1747181398234,5.45107658,183.45,183.35,31.45398869]
[1747181398550,5.45107658,183.45,183.34,44.96]
[1747181399209,19.07876804,183.45,183.34,18.96]
[1747181399396,19.07876804,183.45,183.37,26.0]
[1747181399803,6.1215,183.43,183.37,26.0]
[1747181400228,19.08292895,183.41,183.34,18.96]
[1747181400535,6.4055,183.39,183.31,26.0]
[1747181400714,25.3655,183.39,183.31,26.0]
[1747181401528,5.45315737,183.38,183.31,31.45513199]
[1747181401728,5.45315737,183.38,183.37,18.83959106]
[1747181403258,6.5797,183.44,183.4,26.0]
[1747181403564,6.5797,183.44,183.43,18.83959106]
[1747181403731,18.96,183.48,183.43,18.83959106]
[1747181403926,24.4101853,183.48,183.46,18.83959106]
[1747181404342,24.4101853,183.48,183.47,18.83959106]
[1747181404945,38.03564856,183.48,183.47,18.83959106]
[1747181406543,38.03564856,183.48,183.29,8.50144557]
[1747181406544,56.87523962,183.48,183.33,156.78879106]
[1747181406741,18.98175263,183.47,183.41,18.83959106]
[1747181407232,18.98175263,183.47,183.33,25.94320743]
[1747181407233,18.83959106,183.44,183.33,20.48879106]
[1747181407437,18.83959106,183.44,183.38,18.83959106]
[1747181407946,18.83959106,183.4,183.31,18.96]
[1747181408144,18.96,183.4,183.35,18.83959106]
[1747181408449,5.45286002,183.39,183.37,18.83959106]
[1747181409455,5.45286002,183.39,183.38,18.83959106]
[1747181409663,19.08501008,183.39,183.36,18.83959106]
[1747181409966,19.08501008,183.39,183.37,18.83959106]
[1747181410971,19.08501008,183.39,183.32,26.0]
[1747181411131,5.45286002,183.39,183.36,18.83959106]
[1747181411340,5.45286002,183.39,183.38,18.83959106]
[1747181411747,5.45286002,183.39,183.37,18.83959106]
[1747181411942,19.08501008,183.39,183.36,18.83959106]
[1747181414461,19.08501008,183.39,183.29,20.5672]
[1747181414462,18.83959106,183.38,183.33,18.83959106]
[1747181414968,19.08709166,183.37,183.32,18.83959106]
[1747181415738,37.92668272,183.37,183.32,18.83959106]
[1747181416070,6.656,183.36,183.33,18.83959106]
[1747181416441,6.656,183.36,183.28,26.0]
[1747181416638,6.656,183.36,183.33,18.83959106]
[1747181417054,5.45404963,183.35,183.33,18.83959106]
[1747181417242,5.45404963,183.35,183.32,18.83959106]
[1747181417667,5.45404963,183.35,183.33,18.83959106]
[1747181418375,5.45404963,183.35,183.34,18.83959106]
[1747181419093,19.0891737,183.35,183.25,1.616]
[1747181419390,19.0891737,183.35,183.31,18.83959106]
[1747181419877,19.0891737,183.35,183.27,26.0]
[1747181420091,37.92876476,183.35,183.3,18.83959106]
[1747181420377,18.83959106,183.32,183.27,26.0]
[1747181420583,0.14216157,183.3,183.21,1.5119]
[1747181420880,6.3827,183.29,183.26,18.83959106]
[1747181421474,25.22229106,183.29,183.17,20.4519]
[1747181421782,0.28432314,183.28,183.23,18.83959106]
[1747181422147,19.23966797,183.27,183.23,18.83959106]
[1747181422350,19.23966797,183.27,183.24,18.83959106]
[1747181422760,19.23966797,183.27,183.23,18.83959106]
[1747181423581,19.23966797,183.27,183.2,26.0]
[1747181423791,19.23966797,183.27,183.23,18.83959106]
[1747181424581,5.4564304,183.27,183.26,18.83959106]
[1747181425387,5.4564304,183.27,183.25,18.83959106]
[1747181425556,5.4564304,183.27,183.26,18.83959106]
[1747181425757,5.45613269,183.28,183.26,18.83959106]
[1747181428573,5.45613269,183.28,183.25,18.83959106]
[1747181429295,5.45613269,183.28,183.26,18.83959106]
[1747181431193,5.45613269,183.28,183.27,18.83959106]
[1747181431493,5.45582701,183.3,183.27,18.83959106]
[1747181431661,5.45494217,183.32,183.29,18.83959106]
[1747181431857,5.45494217,183.32,183.24,18.83959106]
[1747181431858,19.09229761,183.32,183.24,18.83959106]
[1747181432088,37.93188867,183.32,183.18,136.3]
[1747181432392,0.14216157,183.31,183.26,18.83959106]
[1747181432558,0.14216157,183.31,183.17,20.4719]
[1747181432559,0.42648471,183.31,183.27,18.83959106]
[1747181432765,0.14216157,183.31,183.27,18.83959106]
[1747181433182,18.98175263,183.31,183.25,18.83959106]
[1747181433379,12.21831121,183.31,183.25,11.7918265]
[1747181433586,11.7918265,183.3,183.21,26.0]
[1747181433781,19.09646442,183.28,183.24,11.7918265]
[1747181434569,19.09646442,183.28,183.2,26.0]
[1747181434795,19.09646442,183.28,183.24,11.7918265]
[1747181435298,11.7918265,183.25,183.13,1.5468]
[1747181435473,11.7918265,183.23,183.18,11.7918265]
[1747181435674,19.10167548,183.23,183.15,11.7918265]
[1747181435869,19.10167548,183.23,183.19,11.7918265]
[1747181436283,19.10167548,183.23,183.18,11.7918265]
[1747181436769,19.10167548,183.23,183.19,11.7918265]
[1747181437388,19.10167548,183.23,183.19,18.87984725]
[1747181437768,19.10167548,183.23,183.2,18.87984725]
[1747181440071,5.45702592,183.25,183.23,18.87984725]
[1747181440684,5.45702592,183.25,183.24,18.87984725]
[1747181440890,5.45702592,183.25,183.18,26.0]
[1747181441104,5.45702592,183.25,183.24,18.87984725]
[1747181444391,24.3967542,183.26,183.24,18.87984725]
[1747181444592,5.45613269,183.28,183.25,44.87984725]
[1747181444789,5.45613269,183.28,183.27,18.87984725]
[1747181446191,5.45553737,183.3,183.27,18.87984725]
[1747181446391,5.45553737,183.3,183.29,18.87984725]
[1747181447295,19.09438079,183.3,183.25,26.0]
[1747181447528,19.09438079,183.3,183.27,18.87984725]
[1747181448305,13.63884342,183.3,183.27,18.87984725]
[1747181449487,5.45523975,183.31,183.29,18.87984725]
[1747181449693,5.45523975,183.31,183.3,18.87984725]
[1747181450699,19.09150846,183.33,183.3,18.87984725]
[1747181450896,5.45464462,183.33,183.32,18.87984725]
[1747181452318,5.45440319,183.34,183.32,18.87984725]
[1747181452617,5.45440319,183.34,183.33,18.87984725]
[1747181454414,5.45404963,183.35,183.33,18.87984725]
[1747181454612,5.45404963,183.35,183.34,18.87984725]
[1747181454918,32.57242039,183.39,183.34,18.87984725]
[1747181455110,13.63242039,183.39,183.37,18.87984725]
[1747181455824,5.45286002,183.39,183.38,18.87984725]
[1747181456811,5.45226541,183.41,183.38,18.87984725]
[1747181457115,5.45226541,183.41,183.4,18.87984725]
[1747181457306,5.45226541,183.41,183.4,11.77019481]
[1747181458209,25.40031176,183.42,183.37,11.77019481]
[1747181458393,11.77019481,183.38,183.32,26.0]
[1747181458593,11.77019481,183.38,183.33,11.77019481]
[1747181458814,11.77019481,183.39,183.34,11.77019481]
[1747181459527,18.84943568,183.39,183.34,18.84943568]
[1747181459933,18.84943568,183.4,183.34,18.84943568]
[1747181460228,19.08501008,183.39,183.34,18.84943568]
[1747181460395,18.84943568,183.38,183.33,26.0]
[1747181460730,37.93444576,183.39,183.34,18.84943568]
[1747181461535,19.08501008,183.39,183.35,18.84943568]
[1747181461828,19.08501008,183.39,183.37,18.84943568]
[1747181462008,19.08501008,183.39,183.38,18.84943568]
[1747181462215,13.63025758,183.42,183.38,18.84943568]
[1747181462536,13.63025758,183.42,183.41,18.84943568]
[1747181462722,13.63025758,183.42,183.4,18.84943568]
[1747181463713,5.45137374,183.44,183.41,18.84943568]
[1747181463915,5.45137374,183.44,183.43,18.84943568]
[1747181464343,5.45077946,183.46,183.43,18.84943568]
[1747181464643,5.45077946,183.46,183.45,18.84943568]
[1747181466235,5.44959128,183.5,183.45,18.84943568]
[1747181466547,13.6234669,183.51,183.49,18.84943568]
[1747181466838,13.6234669,183.51,183.5,18.84943568]
[1747181468049,13.6234669,183.51,183.49,18.84943568]
[1747181469053,13.6234669,183.51,183.5,18.84943568]
[1747181469718,5.44899738,183.52,183.5,18.84943568]
[1747181469929,5.44780998,183.56,183.51,18.84943568]
[1747181470142,19.06733493,183.56,183.51,18.84943568]
[1747181470344,19.06733493,183.56,183.54,18.84943568]
[1747181470511,19.06733493,183.56,183.53,18.84943568]
[1747181470713,5.44780998,183.56,183.55,18.84943568]
[1747181471734,5.44721647,183.58,183.55,18.84943568]
[1747181471919,5.44602984,183.62,183.57,44.84943568]
[1747181472125,24.34602984,183.62,183.61,18.84943568]
[1747181472531,5.44602984,183.62,183.61,18.84943568]
[1747181473722,24.3457807,183.63,183.61,18.84943568]
[1747181473983,24.3457807,183.63,183.62,18.84943568]
[1747181474135,5.4457807,183.63,183.6,26.0]
[1747181474334,5.4457807,183.63,183.6,44.84943568]
[1747181474663,19.05955056,183.64,183.56,1.5533]
[1747181474959,19.05955056,183.64,183.59,18.84943568]
[1747181475117,19.05955056,183.64,183.6,18.84943568]
[1747181476628,5.44543672,183.64,183.63,18.84943568]
[1747181477730,5.44484373,183.66,183.63,44.84943568]
[1747181477935,5.44484373,183.66,183.65,18.84943568]
[1747181478462,19.0538407,183.69,183.65,18.84943568]
[1747181478767,19.0538407,183.69,183.66,18.84943568]
[1747181479631,19.0538407,183.69,183.67,18.84943568]
[1747181479943,5.44395448,183.69,183.68,18.84943568]
[1747181481239,5.44336182,183.71,183.68,18.84943568]
[1747181481536,5.44247305,183.74,183.7,18.84943568]
[1747181481748,5.44247305,183.74,183.73,18.84943568]
[1747181481954,19.04865569,183.74,183.71,18.84943568]
[1747181482231,18.84943568,183.72,183.65,27.5575]
[1747181482462,18.84943568,183.72,183.66,18.84943568]
[1747181482758,18.84943568,183.72,183.67,18.84943568]
[1747181482965,18.84943568,183.72,183.66,18.84943568]
[1747181483170,18.84943568,183.7,183.61,1.6364]
[1747181483335,18.84943568,183.7,183.65,18.84943568]
[1747181483543,19.0538407,183.69,183.66,18.84943568]
[1747181484167,5.44395448,183.69,183.68,18.84943568]
[1747181485578,5.44365813,183.7,183.68,18.84943568]
[1747181485762,19.05280347,183.7,183.67,18.84943568]
[1747181486079,18.84943568,183.69,183.64,18.84943568]
[1747181486375,18.84943568,183.69,183.63,18.84943568]
[1747181486677,18.84943568,183.67,183.62,44.84943568]
[1747181486877,18.84943568,183.67,183.62,18.84943568]
[1747181487078,18.84943568,183.66,183.56,18.88]
[1747181487382,18.84943568,183.63,183.57,1.5416]
[1747181487578,18.84943568,183.62,183.58,26.0]
[1747181487878,18.88,183.63,183.51,18.84943568]
[1747181487879,24.29576213,183.61,183.56,18.84943568]
[1747181488079,19.06214258,183.61,183.58,18.84943568]
[1747181488266,19.06214258,183.61,183.59,18.84943568]
[1747181489389,5.44632645,183.61,183.59,18.84943568]
[1747181489870,32.46326298,183.64,183.54,26.14216157]
[1747181489871,5.44602984,183.62,183.54,26.14216157]
[1747181490076,5.44602984,183.62,183.61,18.84943568]
[1747181490975,19.05926402,183.64,183.61,18.84943568]
[1747181491181,19.05926402,183.64,183.63,18.84943568]
[1747181492059,19.05926402,183.64,183.62,18.84943568]
[1747181492285,19.05926402,183.64,183.6,26.0]
[1747181492470,19.05926402,183.64,183.63,18.84943568]
[1747181493288,19.05591549,183.67,183.63,18.84943568]
[1747181494159,19.05591549,183.67,183.64,18.84943568]
[1747181494361,5.44454728,183.67,183.66,18.84943568]
[1747181495151,13.60941929,183.7,183.66,18.84943568]
[1747181495564,13.60941929,183.7,183.67,18.84943568]
[1747181498288,13.60941929,183.7,183.64,26.0]
[1747181498289,13.60941929,183.7,183.68,18.84943568]
[1747181498659,13.60941929,183.7,183.69,18.84943568]
[1747181498867,5.44306553,183.72,183.69,18.84943568]
[1747181499085,5.44306553,183.72,183.71,18.84943568]
[1747181499663,5.44217687,183.75,183.71,18.84943568]
[1747181499989,5.44217687,183.75,183.74,18.84943568]
[1747181500365,13.60487324,183.76,183.69,20.49463568]
[1747181500573,13.60487324,183.76,183.73,18.84943568]
[1747181500770,13.60487324,183.76,183.74,18.84943568]
[1747181500974,18.84943568,183.75,183.69,1.6452]
[1747181501174,32.45430892,183.76,183.71,18.84943568]
[1747181501380,13.60487324,183.76,183.72,18.84943568]
[1747181501579,13.60487324,183.76,183.73,18.84943568]
[1747181502285,13.60487324,183.76,183.75,18.84943568]
[1747181502999,24.30128849,183.78,183.75,18.84943568]
[1747181503494,5.44128849,183.78,183.75,18.84943568]
[1747181503685,18.84943568,183.76,183.69,27.6452]
[1747181504013,18.84943568,183.76,183.71,18.84943568]
[1747181504192,18.99159725,183.77,183.69,1.6452]
[1747181504399,37.89394541,183.78,183.73,18.84943568]
[1747181504710,46.25095221,183.78,183.74,18.84943568]
[1747181505700,18.84943568,183.77,183.72,18.84943568]
[1747181505869,65.10038789,183.78,183.73,18.84943568]
[1747181506412,18.84943568,183.74,183.64,1.6527]
[1747181506568,18.64964886,183.77,183.67,18.84943568]
[1747181506569,18.84943568,183.72,183.67,18.84943568]
[1747181507082,37.70943568,183.72,183.67,18.84943568]
[1747181507289,18.84943568,183.71,183.66,18.84943568]
[1747181507482,18.84943568,183.71,183.64,1.6527]
[1747181507681,18.84943568,183.71,183.66,18.84943568]
[1747181508074,18.84943568,183.71,183.65,26.0]
[1747181508274,18.84943568,183.71,183.66,18.84943568]
[1747181508483,13.60914534,183.7,183.67,18.84943568]
[1747181509166,13.60914534,183.7,183.65,44.84943568]
[1747181509399,32.45858102,183.7,183.65,44.84943568]
[1747181509601,18.99159725,183.69,183.59,1.6527]
[1747181509773,18.84943568,183.67,183.62,18.84943568]
[1747181510094,13.60914534,183.7,183.66,18.84943568]
[1747181510295,13.60914534,183.7,183.65,26.0]
[1747181510296,13.60914534,183.7,183.68,18.84943568]
[1747181510502,19.05280347,183.7,183.68,18.84943568]
[1747181511871,19.05280347,183.7,183.67,18.84943568]
[1747181512070,18.84943568,183.69,183.65,26.0]
[1747181512268,19.05280347,183.7,183.66,18.84943568]
[1747181513191,19.05280347,183.7,183.68,18.84943568]
[1747181513379,19.05280347,183.7,183.69,18.84943568]
[1747181514100,19.05280347,183.7,183.65,26.0]
[1747181514269,19.05280347,183.7,183.68,18.84943568]
[1747181514471,19.05280347,183.7,183.66,18.84943568]
[1747181515401,37.90223915,183.7,183.65,26.0]
[1747181515581,18.84943568,183.69,183.65,26.0]
[1747181516503,0.14216157,183.69,183.65,26.0]
[1747181516685,19.05280347,183.7,183.66,18.84943568]
[1747181516891,19.05280347,183.7,183.67,18.84943568]
[1747181517095,37.89280347,183.7,183.68,18.84943568]
[1747181517607,37.89280347,183.7,183.67,18.84943568]
[1747181518198,5.44365813,183.7,183.65,26.0]
[1747181518405,5.44365813,183.7,183.69,18.84943568]
[1747181519421,24.29309381,183.7,183.64,18.84943568]
[1747181519590,37.90223915,183.7,183.64,18.84943568]
[1747181519785,19.05280347,183.7,183.66,18.84943568]
[1747181519990,19.05280347,183.7,183.68,18.84943568]
[1747181520893,5.44365813,183.7,183.69,18.84943568]
[1747181521096,5.44365813,183.7,183.69,44.84943568]
[1747181522095,5.44365813,183.7,183.64,26.0]
[1747181522295,5.44365813,183.7,183.68,18.84943568]
[1747181522493,5.44365813,183.7,183.69,18.84943568]
[1747181522905,19.04992756,183.73,183.69,18.84943568]
[1747181523109,19.04992756,183.73,183.68,18.84943568]
[1747181523313,18.84943568,183.7,183.66,26.0]
[1747181523619,29.39159725,183.72,183.66,44.84943568]
[1747181523821,10.4,183.72,183.68,18.84943568]
[1747181524907,5.44336182,183.71,183.68,18.84943568]
[1747181525317,5.44336182,183.71,183.65,18.84943568]
[1747181525318,0.14216157,183.7,183.65,18.84943568]
[1747181525704,0.14216157,183.7,183.67,18.84943568]
[1747181526536,0.14216157,183.7,183.66,18.84943568]
[1747181527616,5.44395448,183.69,183.67,18.84943568]
[1747181527922,19.0538407,183.69,183.63,27.5144]
[1747181528224,18.84943568,183.66,183.59,1.6041]
[1747181528395,0.14216157,183.65,183.6,18.84943568]
[1747181528591,18.84943568,183.68,183.62,18.84943568]
[1747181528909,18.84943568,183.66,183.61,18.84943568]
[1747181529117,0.14216157,183.65,183.6,18.84943568]
[1747181529317,0.14216157,183.65,183.62,18.84943568]